[Event "Late-Titled-Tuesday-Blitz-May-28-2024"]
[Site "Chess.com"]
[Date "2024.05.28"]
[Round "4"]
[White "Sawatdeekhrap"]
[Black "zsizsi99"]
[Result "0-1"]
[WhiteElo "2756"]
[BlackElo "2559"]
[TimeControl "180+1"]
[EndTime "14:39:42 PDT"]
[Termination "zsizsi99 won by checkmate"]

1. e4 {[%clk 0:03:00.9]} 1... c5 {[%clk 0:02:58.8]} 2. Nf3 {[%clk 0:03:00.3]}
2... Nc6 {[%clk 0:02:57]} 3. d4 {[%clk 0:02:57.9]} 3... cxd4 {[%clk 0:02:56.3]}
4. Nxd4 {[%clk 0:02:58.7]} 4... e5 {[%clk 0:02:56.6]} 5. Nb5 {[%clk 0:02:58]}
5... d6 {[%clk 0:02:57]} 6. N1c3 {[%clk 0:02:58.5]} 6... a6 {[%clk 0:02:57.2]}
7. Na3 {[%clk 0:02:58.4]} 7... Be6 {[%clk 0:02:57.4]} 8. Nc4 {[%clk 0:02:58]}
8... b5 {[%clk 0:02:45.3]} 9. Ne3 {[%clk 0:02:57.1]} 9... Nf6 {[%clk 0:02:45.6]}
10. g3 {[%clk 0:02:55.7]} 10... Be7 {[%clk 0:02:43.2]} 11. Bg2 {[%clk
0:02:55.4]} 11... O-O {[%clk 0:02:41.9]} 12. O-O {[%clk 0:02:56]} 12... Qb8
{[%clk 0:02:27.3]} 13. Ncd5 {[%clk 0:02:55.2]} 13... Bxd5 {[%clk 0:02:26.6]} 14.
Nxd5 {[%clk 0:02:55.5]} 14... Nxd5 {[%clk 0:02:26.1]} 15. Qxd5 {[%clk
0:02:56.1]} 15... Rc8 {[%clk 0:02:19.8]} 16. c3 {[%clk 0:02:55.4]} 16... Na5
{[%clk 0:02:11.8]} 17. a4 {[%clk 0:02:19.4]} 17... Rc5 {[%clk 0:02:04.8]} 18.
Qd1 {[%clk 0:02:18.4]} 18... Nc4 {[%clk 0:01:26.4]} 19. axb5 {[%clk 0:02:17.1]}
19... axb5 {[%clk 0:01:24.7]} 20. Rxa8 {[%clk 0:02:17.6]} 20... Qxa8 {[%clk
0:01:25.5]} 21. b3 {[%clk 0:02:17.8]} 21... Nb6 {[%clk 0:01:20.6]} 22. Be3
{[%clk 0:02:18.3]} 22... Rc6 {[%clk 0:01:20.8]} 23. Qd3 {[%clk 0:02:17.3]} 23...
Qa5 {[%clk 0:01:16.6]} 24. b4 {[%clk 0:02:05.4]} 24... Qa6 {[%clk 0:01:05.1]}
25. Bxb6 {[%clk 0:01:49.8]} 25... Rxb6 {[%clk 0:01:01.2]} 26. Rc1 {[%clk
0:01:42]} 26... Rc6 {[%clk 0:00:56.9]} 27. Bf1 {[%clk 0:01:41]} 27... Bg5 {[%clk
0:00:54.8]} 28. Rc2 {[%clk 0:01:40.8]} 28... Rc4 {[%clk 0:00:46.7]} 29. Qd5
{[%clk 0:01:37.2]} 29... Rc8 {[%clk 0:00:34.4]} 30. Bxb5 {[%clk 0:01:36.5]}
30... Qa1+ {[%clk 0:00:34.5]} 31. Kg2 {[%clk 0:01:35.8]} 31... Qb1 {[%clk
0:00:28]} 32. Bc4 {[%clk 0:01:31.1]} 32... Qxc2 {[%clk 0:00:22.6]} 33. Qxf7+
{[%clk 0:01:31.4]} 33... Kh8 {[%clk 0:00:23]} 34. Qf5 {[%clk 0:01:25.9]} 34...
Rb8 {[%clk 0:00:14.8]} 35. Bd5 {[%clk 0:01:14.4]} 35... Bf6 {[%clk 0:00:14.8]}
36. c4 {[%clk 0:01:11.2]} 36... Qc3 {[%clk 0:00:13.7]} 37. b5 {[%clk 0:01:10.8]}
37... Qd4 {[%clk 0:00:14.3]} 38. h4 {[%clk 0:01:07.3]} 38... Qb6 {[%clk
0:00:14]} 39. h5 {[%clk 0:01:06.3]} 39... Qd8 {[%clk 0:00:14.1]} 40. h6 {[%clk
0:01:04.5]} 40... g6 {[%clk 0:00:14.5]} 41. Qf3 {[%clk 0:01:02.6]} 41... Bg5
{[%clk 0:00:13.8]} 42. Qc3 {[%clk 0:00:47.9]} 42... Bxh6 {[%clk 0:00:13.1]} 43.
c5 {[%clk 0:00:48.6]} 43... dxc5 {[%clk 0:00:12.2]} 44. Qxc5 {[%clk 0:00:43]}
44... Bg7 {[%clk 0:00:12.8]} 45. Bc6 {[%clk 0:00:39.5]} 45... Qb6 {[%clk
0:00:12.6]} 46. Qd6 {[%clk 0:00:38.6]} 46... Rf8 {[%clk 0:00:12.5]} 47. Qd2
{[%clk 0:00:38.8]} 47... Qd4 {[%clk 0:00:12]} 48. Qc2 {[%clk 0:00:33.5]} 48...
Rd8 {[%clk 0:00:08.5]} 49. Bd5 {[%clk 0:00:32.7]} 49... Qb6 {[%clk 0:00:08.2]}
50. Bc6 {[%clk 0:00:32]} 50... Bf8 {[%clk 0:00:08.1]} 51. Qc3 {[%clk 0:00:24.8]}
51... Qd4 {[%clk 0:00:07.9]} 52. Qf3 {[%clk 0:00:24.6]} 52... Bg7 {[%clk
0:00:06.5]} 53. Qb3 {[%clk 0:00:20.8]} 53... Rf8 {[%clk 0:00:06.6]} 54. Qc2
{[%clk 0:00:21.5]} 54... Bf6 {[%clk 0:00:06.4]} 55. Bd5 {[%clk 0:00:16.2]} 55...
Bd8 {[%clk 0:00:06.6]} 56. f3 {[%clk 0:00:15.1]} 56... Bb6 {[%clk 0:00:07]} 57.
Qe2 {[%clk 0:00:11.5]} 57... Qg1+ {[%clk 0:00:06.9]} 58. Kh3 {[%clk 0:00:12.2]}
58... Qh1+ {[%clk 0:00:07.4]} 59. Kg4 {[%clk 0:00:12.1]} 59... Qh5# {[%clk
0:00:07.8]} 0-1

[Event "Late-Titled-Tuesday-Blitz-May-28-2024"]
[Site "Chess.com"]
[Date "2024.05.28"]
[Round "4"]
[White "wonderfultime"]
[Black "GianmarcoVaR"]
[Result "1-0"]
[WhiteElo "3010"]
[BlackElo "2720"]
[TimeControl "180+1"]
[EndTime "14:39:45 PDT"]
[Termination "wonderfultime won by checkmate"]

1. d4 {[%clk 0:02:49.9]} 1... Nf6 {[%clk 0:02:58]} 2. Nf3 {[%clk 0:02:49.6]}
2... d5 {[%clk 0:02:42.5]} 3. Bf4 {[%clk 0:02:49.5]} 3... c5 {[%clk 0:02:42.5]}
4. c3 {[%clk 0:02:49.6]} 4... e6 {[%clk 0:02:36.4]} 5. e3 {[%clk 0:02:49.7]}
5... Bd6 {[%clk 0:02:36.2]} 6. Nbd2 {[%clk 0:02:49.6]} 6... Qc7 {[%clk
0:02:33.4]} 7. Bxd6 {[%clk 0:02:49.5]} 7... Qxd6 {[%clk 0:02:33.1]} 8. Ne5
{[%clk 0:02:50.4]} 8... O-O {[%clk 0:02:12.5]} 9. Bd3 {[%clk 0:02:45.3]} 9... b6
{[%clk 0:02:01.6]} 10. Qe2 {[%clk 0:02:36.3]} 10... cxd4 {[%clk 0:01:53.6]} 11.
exd4 {[%clk 0:02:36.3]} 11... a5 {[%clk 0:01:53.6]} 12. O-O {[%clk 0:02:35.9]}
12... Ba6 {[%clk 0:01:52.7]} 13. Bxa6 {[%clk 0:02:35.7]} 13... Nxa6 {[%clk
0:01:52.2]} 14. Rfe1 {[%clk 0:02:35.2]} 14... Nc7 {[%clk 0:01:40]} 15. a4 {[%clk
0:02:32]} 15... Qe7 {[%clk 0:01:36.4]} 16. Ndf3 {[%clk 0:02:31.8]} 16... Nce8
{[%clk 0:01:36.2]} 17. Qb5 {[%clk 0:02:19.2]} 17... Qc7 {[%clk 0:01:29.6]} 18.
Re2 {[%clk 0:02:14.8]} 18... Nd6 {[%clk 0:01:26.9]} 19. Qd3 {[%clk 0:02:15.5]}
19... Rab8 {[%clk 0:01:23.5]} 20. h3 {[%clk 0:02:08.3]} 20... b5 {[%clk
0:01:20.3]} 21. axb5 {[%clk 0:02:08.6]} 21... Rxb5 {[%clk 0:01:21.2]} 22. Ng4
{[%clk 0:01:59.8]} 22... Nfe4 {[%clk 0:01:14.1]} 23. Ne3 {[%clk 0:00:57.4]}
23... Rfb8 {[%clk 0:01:04.9]} 24. Ra2 {[%clk 0:00:58]} 24... R8b7 {[%clk
0:00:41]} 25. Rc2 {[%clk 0:00:44.6]} 25... Qb8 {[%clk 0:00:35.6]} 26. Qe2 {[%clk
0:00:44.9]} 26... f6 {[%clk 0:00:24.9]} 27. Ne1 {[%clk 0:00:44]} 27... Qc8
{[%clk 0:00:20.6]} 28. Nd3 {[%clk 0:00:44]} 28... Nc4 {[%clk 0:00:19.7]} 29. f3
{[%clk 0:00:37.9]} 29... Ng3 {[%clk 0:00:16.5]} 30. Qe1 {[%clk 0:00:38]} 30...
Nxe3 {[%clk 0:00:16.1]} 31. Qxe3 {[%clk 0:00:38.8]} 31... Nf5 {[%clk 0:00:16.8]}
32. Qe2 {[%clk 0:00:32.8]} 32... R7b6 {[%clk 0:00:15.1]} 33. Rd2 {[%clk
0:00:22.2]} 33... Qc4 {[%clk 0:00:12.5]} 34. Ra1 {[%clk 0:00:22.3]} 34... Kf7
{[%clk 0:00:07.9]} 35. Re1 {[%clk 0:00:22.4]} 35... Qc7 {[%clk 0:00:04.9]} 36.
f4 {[%clk 0:00:21.5]} 36... Qc8 {[%clk 0:00:04]} 37. Qh5+ {[%clk 0:00:21.6]}
37... Kg8 {[%clk 0:00:03.7]} 38. Qg4 {[%clk 0:00:21.7]} 38... Nh6 {[%clk
0:00:01.7]} 39. Qf3 {[%clk 0:00:20.3]} 39... Nf5 {[%clk 0:00:02.4]} 40. Rde2
{[%clk 0:00:20.5]} 40... Rc6 {[%clk 0:00:01.2]} 41. Nc5 {[%clk 0:00:19.5]} 41...
Rcxc5 {[%clk 0:00:01.8]} 42. dxc5 {[%clk 0:00:19.1]} 42... Qxc5+ {[%clk
0:00:02]} 43. Kh2 {[%clk 0:00:19.8]} 43... Rb6 {[%clk 0:00:02.3]} 44. Rxe6
{[%clk 0:00:19.8]} 44... Rxe6 {[%clk 0:00:02.1]} 45. Rxe6 {[%clk 0:00:20.7]}
45... g6 {[%clk 0:00:01]} 46. Rxf6 {[%clk 0:00:17.8]} 46... Nd6 {[%clk 0:00:01]}
47. Qg4 {[%clk 0:00:16.2]} 47... Ne4 {[%clk 0:00:01.3]} 48. Qe6+ {[%clk
0:00:16.8]} 48... Kg7 {[%clk 0:00:01.6]} 49. Qf7+ {[%clk 0:00:13.7]} 49... Kh6
{[%clk 0:00:01.9]} 50. Qf8+ {[%clk 0:00:14.4]} 50... Qxf8 {[%clk 0:00:01.5]} 51.
Rxf8 {[%clk 0:00:15.3]} 51... a4 {[%clk 0:00:01.3]} 52. Ra8 {[%clk 0:00:15.7]}
52... Nc5 {[%clk 0:00:02]} 53. Ra5 {[%clk 0:00:16]} 53... Nd3 {[%clk 0:00:01.8]}
54. Rxa4 {[%clk 0:00:15.7]} 54... Kg7 {[%clk 0:00:02.2]} 55. Rd4 {[%clk
0:00:16]} 55... Nxb2 {[%clk 0:00:02.8]} 56. Rxd5 {[%clk 0:00:16.5]} 56... Nc4
{[%clk 0:00:03.6]} 57. Rd4 {[%clk 0:00:16.9]} 57... Ne3 {[%clk 0:00:04]} 58. c4
{[%clk 0:00:17.3]} 58... Nf5 {[%clk 0:00:04.2]} 59. Rd7+ {[%clk 0:00:16.3]}
59... Kf6 {[%clk 0:00:04.5]} 60. c5 {[%clk 0:00:17.2]} 60... h5 {[%clk
0:00:04.7]} 61. c6 {[%clk 0:00:17.7]} 61... Ke6 {[%clk 0:00:05.6]} 62. Rd1
{[%clk 0:00:17.6]} 62... Ne7 {[%clk 0:00:06.3]} 63. c7 {[%clk 0:00:18.1]} 63...
Nc8 {[%clk 0:00:06.2]} 64. Rd8 {[%clk 0:00:18.5]} 64... Nb6 {[%clk 0:00:07]} 65.
Kg3 {[%clk 0:00:18.8]} 65... Ke7 {[%clk 0:00:06.7]} 66. Rb8 {[%clk 0:00:18.6]}
66... Nd5 {[%clk 0:00:06.5]} 67. c8=Q {[%clk 0:00:18.7]} 67... Nf6 {[%clk
0:00:06.8]} 68. Qd8+ {[%clk 0:00:18.9]} 68... Ke6 {[%clk 0:00:07.2]} 69. Rb6+
{[%clk 0:00:19.2]} 69... Kf5 {[%clk 0:00:07.4]} 70. Qd3+ {[%clk 0:00:17.1]}
70... Ne4+ {[%clk 0:00:06.7]} 71. Kf3 {[%clk 0:00:16.1]} 71... h4 {[%clk
0:00:05.6]} 72. Qd5# {[%clk 0:00:16]} 1-0

[Event "Late-Titled-Tuesday-Blitz-May-28-2024"]
[Site "Chess.com"]
[Date "2024.05.28"]
[Round "4"]
[White "robertoalejandro10"]
[Black "Connectedcloud"]
[Result "1/2-1/2"]
[WhiteElo "2496"]
[BlackElo "2228"]
[TimeControl "180+1"]
[EndTime "14:39:47 PDT"]
[Termination "Game drawn by repetition"]

1. b3 {[%clk 0:02:53.2]} 1... d5 {[%clk 0:02:57.1]} 2. Nf3 {[%clk 0:02:49.6]}
2... Nf6 {[%clk 0:02:56.8]} 3. Bb2 {[%clk 0:02:49.3]} 3... Bg4 {[%clk
0:02:57.4]} 4. g3 {[%clk 0:02:47.4]} 4... Bxf3 {[%clk 0:02:56.6]} 5. exf3 {[%clk
0:02:48.3]} 5... c5 {[%clk 0:02:51.1]} 6. Bg2 {[%clk 0:02:47.2]} 6... Nc6 {[%clk
0:02:48.9]} 7. f4 {[%clk 0:02:47]} 7... h5 {[%clk 0:02:47.9]} 8. h4 {[%clk
0:02:44.3]} 8... e6 {[%clk 0:02:46.5]} 9. O-O {[%clk 0:02:42.8]} 9... g6 {[%clk
0:02:46.2]} 10. d3 {[%clk 0:02:36.3]} 10... Bg7 {[%clk 0:02:45.5]} 11. Nd2
{[%clk 0:02:36.4]} 11... O-O {[%clk 0:02:45.5]} 12. Re1 {[%clk 0:02:36.5]} 12...
Ng4 {[%clk 0:02:41.8]} 13. Bxg7 {[%clk 0:02:35.9]} 13... Kxg7 {[%clk 0:02:42.7]}
14. Nf3 {[%clk 0:02:35.7]} 14... Qf6 {[%clk 0:02:40]} 15. Qd2 {[%clk 0:02:34.5]}
15... Rfe8 {[%clk 0:02:35.7]} 16. Rac1 {[%clk 0:02:32.4]} 16... Rad8 {[%clk
0:02:35.5]} 17. c3 {[%clk 0:02:32.2]} 17... b6 {[%clk 0:02:28.4]} 18. a3 {[%clk
0:02:28.4]} 18... e5 {[%clk 0:02:03.1]} 19. fxe5 {[%clk 0:02:05]} 19... Ncxe5
{[%clk 0:02:01.5]} 20. Nxe5 {[%clk 0:01:20.3]} 20... Nxe5 {[%clk 0:01:57.1]} 21.
d4 {[%clk 0:01:17.4]} 21... Nf3+ {[%clk 0:01:52.3]} 22. Bxf3 {[%clk 0:01:16.6]}
22... Qxf3 {[%clk 0:01:52.8]} 23. Rxe8 {[%clk 0:01:04.3]} 23... Rxe8 {[%clk
0:01:52.4]} 24. Re1 {[%clk 0:01:03.2]} 24... Rxe1+ {[%clk 0:01:50.2]} 25. Qxe1
{[%clk 0:01:04.1]} 25... Kh7 {[%clk 0:01:43.1]} 26. Qd2 {[%clk 0:00:55.7]} 26...
Qe4 {[%clk 0:01:32.9]} 27. dxc5 {[%clk 0:00:33.3]} 27... bxc5 {[%clk 0:01:31.2]}
28. b4 {[%clk 0:00:32.5]} 28... cxb4 {[%clk 0:01:19.9]} 29. axb4 {[%clk
0:00:33.4]} 29... Qc4 {[%clk 0:01:16.7]} 30. Qe3 {[%clk 0:00:31.5]} 30... a6
{[%clk 0:01:12.8]} 31. Qe5 {[%clk 0:00:31]} 31... Qd3 {[%clk 0:01:00.4]} 32. Kg2
{[%clk 0:00:25.5]} 32... Qc4 {[%clk 0:00:52.7]} 33. Qf6 {[%clk 0:00:23.3]} 33...
Kg8 {[%clk 0:00:48.6]} 34. Qe5 {[%clk 0:00:20.4]} 34... Kh7 {[%clk 0:00:46]} 35.
Kf3 {[%clk 0:00:18.1]} 35... Kg8 {[%clk 0:00:44]} 36. Ke3 {[%clk 0:00:15.7]}
36... Kh7 {[%clk 0:00:36.7]} 37. Qd4 {[%clk 0:00:15.9]} 37... Qb3 {[%clk
0:00:33.1]} 38. Kf4 {[%clk 0:00:14]} 38... Qa2 {[%clk 0:00:23.7]} 39. Ke5 {[%clk
0:00:13.8]} 39... Qb3 {[%clk 0:00:16.4]} 40. Kd6 {[%clk 0:00:13.2]} 40... Qa2
{[%clk 0:00:14]} 41. Qxd5 {[%clk 0:00:10.7]} 41... Qxf2 {[%clk 0:00:13]} 42. Qe5
{[%clk 0:00:09.4]} 42... Qb6+ {[%clk 0:00:12.3]} 43. Kd5 {[%clk 0:00:08.9]}
43... Qb5+ {[%clk 0:00:12.8]} 44. Kd4 {[%clk 0:00:09.1]} 44... Qb6+ {[%clk
0:00:12.2]} 45. Qc5 {[%clk 0:00:06.7]} 45... Qf6+ {[%clk 0:00:12.2]} 46. Qe5
{[%clk 0:00:05.9]} 46... Qb6+ {[%clk 0:00:11.9]} 47. Kc4 {[%clk 0:00:06.6]}
47... Qc6+ {[%clk 0:00:11.7]} 48. Kb3 {[%clk 0:00:06.2]} 48... Qd7 {[%clk
0:00:07.5]} 49. c4 {[%clk 0:00:05.8]} 49... Qd1+ {[%clk 0:00:07.6]} 50. Ka3
{[%clk 0:00:03.8]} 50... Qd3+ {[%clk 0:00:07.5]} 51. Ka4 {[%clk 0:00:03.5]}
51... Qxc4 {[%clk 0:00:07.9]} 52. Qd6 {[%clk 0:00:03.7]} 52... Qb5+ {[%clk
0:00:07.5]} 53. Kb3 {[%clk 0:00:04]} 53... Qf5 {[%clk 0:00:06.2]} 54. Qxa6
{[%clk 0:00:02.6]} 54... Qf3+ {[%clk 0:00:06.7]} 55. Ka4 {[%clk 0:00:02.5]}
55... Qxg3 {[%clk 0:00:06.6]} 56. b5 {[%clk 0:00:03.4]} 56... Qf4+ {[%clk
0:00:06.3]} 57. Ka5 {[%clk 0:00:04.3]} 57... Qd2+ {[%clk 0:00:06.4]} 58. Kb6
{[%clk 0:00:04.6]} 58... Qd6+ {[%clk 0:00:06.9]} 59. Ka7 {[%clk 0:00:05]} 59...
Qc7+ {[%clk 0:00:04.6]} 60. Qb7 {[%clk 0:00:05.5]} 60... Qa5+ {[%clk 0:00:04.6]}
61. Kb8 {[%clk 0:00:04.6]} 61... Qd8+ {[%clk 0:00:04.9]} 62. Ka7 {[%clk
0:00:05]} 62... Qa5+ {[%clk 0:00:05.3]} 63. Qa6 {[%clk 0:00:05]} 63... Qc7+
{[%clk 0:00:05.6]} 64. Ka8 {[%clk 0:00:05.9]} 64... Qd8+ {[%clk 0:00:05.6]} 65.
Kb7 {[%clk 0:00:06.8]} 65... Qd7+ {[%clk 0:00:05.8]} 66. Kb6 {[%clk 0:00:07.1]}
66... Qd6+ {[%clk 0:00:06]} 67. Ka5 {[%clk 0:00:07.4]} 67... Qa3+ {[%clk
0:00:06.1]} 68. Kb6 {[%clk 0:00:08]} 68... Qd6+ {[%clk 0:00:06.7]} 1/2-1/2

[Event "Late-Titled-Tuesday-Blitz-May-28-2024"]
[Site "Chess.com"]
[Date "2024.05.28"]
[Round "4"]
[White "kirillshevchenko"]
[Black "NeverGiveUppp"]
[Result "1-0"]
[WhiteElo "2904"]
[BlackElo "2596"]
[TimeControl "180+1"]
[EndTime "14:39:55 PDT"]
[Termination "kirillshevchenko won by resignation"]

1. b3 {[%clk 0:03:00.9]} 1... e5 {[%clk 0:02:57.8]} 2. Bb2 {[%clk 0:02:59.9]}
2... Nc6 {[%clk 0:02:57]} 3. e3 {[%clk 0:03:00.4]} 3... Nf6 {[%clk 0:02:56.5]}
4. Nf3 {[%clk 0:03:00.7]} 4... e4 {[%clk 0:02:52.5]} 5. Nd4 {[%clk 0:02:59.8]}
5... Nxd4 {[%clk 0:02:48.5]} 6. Bxd4 {[%clk 0:03:00.7]} 6... d5 {[%clk
0:02:46.6]} 7. c4 {[%clk 0:02:54.8]} 7... c5 {[%clk 0:02:39.9]} 8. Bxf6 {[%clk
0:02:49.5]} 8... Qxf6 {[%clk 0:02:38.8]} 9. Nc3 {[%clk 0:02:49.9]} 9... d4
{[%clk 0:02:35.1]} 10. Nxe4 {[%clk 0:02:49.3]} 10... Qg6 {[%clk 0:02:35.3]} 11.
Ng3 {[%clk 0:02:30]} 11... h5 {[%clk 0:02:29.1]} 12. exd4 {[%clk 0:02:21.8]}
12... h4 {[%clk 0:02:27.9]} 13. Qe2+ {[%clk 0:01:39.8]} 13... Be7 {[%clk
0:02:23.7]} 14. Ne4 {[%clk 0:01:39.7]} 14... cxd4 {[%clk 0:02:10]} 15. Qf3
{[%clk 0:01:37.7]} 15... f5 {[%clk 0:02:03.4]} 16. Bd3 {[%clk 0:01:37.1]} 16...
fxe4 {[%clk 0:02:01.1]} 17. Bxe4 {[%clk 0:01:38]} 17... Qf6 {[%clk 0:01:46.6]}
18. Bxb7 {[%clk 0:01:22.5]} 18... Bxb7 {[%clk 0:01:43.5]} 19. Qxb7 {[%clk
0:01:22.2]} 19... O-O {[%clk 0:01:37.3]} 20. O-O {[%clk 0:01:22.3]} 20... h3
{[%clk 0:01:37.1]} 21. Rae1 {[%clk 0:01:11]} 21... hxg2 {[%clk 0:01:34.2]} 22.
Kxg2 {[%clk 0:01:08.3]} 22... Rae8 {[%clk 0:01:33.1]} 23. Qd5+ {[%clk
0:01:06.7]} 23... Kh8 {[%clk 0:01:31.1]} 24. Re6 {[%clk 0:01:06.4]} 24... Qh4
{[%clk 0:01:23.7]} 25. Re4 {[%clk 0:00:38]} 25... Qh6 {[%clk 0:01:12.2]} 26. Re5
{[%clk 0:00:24.2]} 26... Qg6+ {[%clk 0:01:07.1]} 27. Kh1 {[%clk 0:00:24]} 27...
Qf7 {[%clk 0:00:53.3]} 28. Rfe1 {[%clk 0:00:21.8]} 28... g6 {[%clk 0:00:46.6]}
29. f4 {[%clk 0:00:20.6]} 29... Qxf4 {[%clk 0:00:42.9]} 30. Qg2 {[%clk
0:00:17.7]} 30... Rf7 {[%clk 0:00:32.7]} 31. R5e4 {[%clk 0:00:14.4]} 31... Qf5
{[%clk 0:00:27.1]} 32. Re5 {[%clk 0:00:13.6]} 32... Qf6 {[%clk 0:00:21.7]} 33.
c5 {[%clk 0:00:13.8]} 33... Rc8 {[%clk 0:00:18.5]} 34. Re6 {[%clk 0:00:12.8]}
34... Qf5 {[%clk 0:00:14.4]} 35. Rxe7 {[%clk 0:00:11.3]} 35... Rxe7 {[%clk
0:00:12.8]} 36. Rxe7 {[%clk 0:00:12.2]} 36... Rf8 {[%clk 0:00:07.8]} 37. Re1
{[%clk 0:00:12]} 37... Qxc5 {[%clk 0:00:06.3]} 38. Qe4 {[%clk 0:00:12.2]} 38...
Qg5 {[%clk 0:00:05.2]} 39. Qxd4+ {[%clk 0:00:11.1]} 39... Kg8 {[%clk 0:00:04.9]}
40. Qc4+ {[%clk 0:00:11]} 40... Kh8 {[%clk 0:00:04.8]} 41. Qc3+ {[%clk
0:00:11.3]} 41... Kg8 {[%clk 0:00:05.4]} 42. Qc4+ {[%clk 0:00:08.2]} 42... Kh8
{[%clk 0:00:05.8]} 43. Qd4+ {[%clk 0:00:08.5]} 43... Kg8 {[%clk 0:00:05.4]} 44.
Rg1 {[%clk 0:00:09]} 44... Qf5 {[%clk 0:00:04.6]} 45. Qg4 {[%clk 0:00:07.6]}
45... Qd5+ {[%clk 0:00:03.9]} 46. Qg2 {[%clk 0:00:08.2]} 46... Rf3 {[%clk
0:00:03]} 47. Qxg6+ {[%clk 0:00:07.9]} 47... Kf8 {[%clk 0:00:03.7]} 48. Qg7+
{[%clk 0:00:07.8]} 48... Ke8 {[%clk 0:00:03.9]} 49. Qg8+ {[%clk 0:00:08.7]}
49... Qxg8 {[%clk 0:00:01]} 50. Rxg8+ {[%clk 0:00:09.6]} 50... Ke7 {[%clk
0:00:01.1]} 51. Rg7+ {[%clk 0:00:09.7]} 51... Ke6 {[%clk 0:00:02]} 52. Rxa7
{[%clk 0:00:09.4]} 52... Rd3 {[%clk 0:00:02.9]} 53. Kg2 {[%clk 0:00:07.6]} 53...
Rxd2+ {[%clk 0:00:03.5]} 54. Kg3 {[%clk 0:00:08.3]} 54... Kf6 {[%clk 0:00:03.9]}
55. h4 {[%clk 0:00:07.5]} 55... Kg6 {[%clk 0:00:04.8]} 56. Ra6+ {[%clk
0:00:07.2]} 56... Kf5 {[%clk 0:00:04.9]} 57. Ra5+ {[%clk 0:00:07.6]} 57... Kg6
{[%clk 0:00:04.7]} 58. h5+ {[%clk 0:00:08.3]} 58... Kh6 {[%clk 0:00:04.4]} 59.
Kf3 {[%clk 0:00:08.5]} 59... Rd3+ {[%clk 0:00:04.5]} 60. Ke4 {[%clk 0:00:08.8]}
60... Rh3 {[%clk 0:00:04.6]} 61. Re5 {[%clk 0:00:08.3]} 61... Rh4+ {[%clk
0:00:05.1]} 62. Kd5 {[%clk 0:00:08.4]} 62... Rh2 {[%clk 0:00:05.6]} 63. a4
{[%clk 0:00:08.5]} 63... Rb2 {[%clk 0:00:06.2]} 64. Kc4 {[%clk 0:00:08.5]} 64...
Rc2+ {[%clk 0:00:06.2]} 65. Kb5 {[%clk 0:00:08.2]} 65... Rb2 {[%clk 0:00:06.3]}
66. b4 {[%clk 0:00:08.2]} 66... Re2 {[%clk 0:00:06.2]} 67. Rxe2 {[%clk
0:00:07.9]} 67... Kxh5 {[%clk 0:00:05.9]} 68. a5 {[%clk 0:00:07.2]} 1-0

[Event "Late-Titled-Tuesday-Blitz-May-28-2024"]
[Site "Chess.com"]
[Date "2024.05.28"]
[Round "4"]
[White "Josetricks"]
[Black "Stanbad1"]
[Result "0-1"]
[WhiteElo "2472"]
[BlackElo "2670"]
[TimeControl "180+1"]
[EndTime "14:40:01 PDT"]
[Termination "Stanbad1 won on time"]

1. c4 {[%clk 0:03:00.9]} 1... Nf6 {[%clk 0:02:59.6]} 2. Nf3 {[%clk 0:02:59.5]}
2... g6 {[%clk 0:02:59.4]} 3. g3 {[%clk 0:02:57.8]} 3... Bg7 {[%clk 0:02:59.7]}
4. Bg2 {[%clk 0:02:58.7]} 4... d6 {[%clk 0:03:00.1]} 5. O-O {[%clk 0:02:58.1]}
5... O-O {[%clk 0:03:00.6]} 6. b3 {[%clk 0:02:51.4]} 6... c5 {[%clk 0:02:59.7]}
7. Bb2 {[%clk 0:02:49.3]} 7... Nc6 {[%clk 0:03:00.2]} 8. e3 {[%clk 0:02:47.2]}
8... Rb8 {[%clk 0:03:00.1]} 9. Qe2 {[%clk 0:02:46.9]} 9... a6 {[%clk 0:03:00.3]}
10. d4 {[%clk 0:02:42.9]} 10... b5 {[%clk 0:03:00.6]} 11. dxc5 {[%clk
0:02:39.6]} 11... dxc5 {[%clk 0:02:57.1]} 12. Rd1 {[%clk 0:02:37]} 12... Qb6
{[%clk 0:02:54.5]} 13. Nc3 {[%clk 0:02:33.9]} 13... Be6 {[%clk 0:02:51.7]} 14.
Nd5 {[%clk 0:02:29.9]} 14... Qa7 {[%clk 0:02:40.2]} 15. Rac1 {[%clk 0:02:15.4]}
15... bxc4 {[%clk 0:02:38.6]} 16. Bxf6 {[%clk 0:02:04.2]} 16... exf6 {[%clk
0:02:31.3]} 17. bxc4 {[%clk 0:02:00.6]} 17... Rfe8 {[%clk 0:02:23.9]} 18. Nf4
{[%clk 0:01:53.7]} 18... f5 {[%clk 0:02:13.5]} 19. Nxe6 {[%clk 0:01:52.1]} 19...
fxe6 {[%clk 0:02:13.2]} 20. h4 {[%clk 0:01:48.2]} 20... Rb2 {[%clk 0:02:10.7]}
21. Rc2 {[%clk 0:01:45.7]} 21... Rxc2 {[%clk 0:02:10.2]} 22. Qxc2 {[%clk
0:01:46.6]} 22... e5 {[%clk 0:02:06.6]} 23. Ng5 {[%clk 0:01:43.4]} 23... e4
{[%clk 0:02:06.6]} 24. Qa4 {[%clk 0:01:38.2]} 24... Qb7 {[%clk 0:02:05.3]} 25.
Rd6 {[%clk 0:01:35.8]} 25... Rc8 {[%clk 0:02:04.1]} 26. h5 {[%clk 0:01:30.4]}
26... Bf8 {[%clk 0:02:01.9]} 27. Re6 {[%clk 0:01:27.7]} 27... Be7 {[%clk
0:01:51.8]} 28. Nxe4 {[%clk 0:01:09.1]} 28... Qb1+ {[%clk 0:01:47.1]} 29. Kh2
{[%clk 0:01:06.7]} 29... fxe4 {[%clk 0:01:47.3]} 30. Bxe4 {[%clk 0:01:06.6]}
30... Qb2 {[%clk 0:01:46.7]} 31. Bxc6 {[%clk 0:00:57.1]} 31... Qxf2+ {[%clk
0:01:45.4]} 32. Bg2 {[%clk 0:00:53.9]} 32... Bf6 {[%clk 0:01:40.7]} 33. Qxa6
{[%clk 0:00:51.2]} 33... Rf8 {[%clk 0:01:37.9]} 34. hxg6 {[%clk 0:00:40.7]}
34... hxg6 {[%clk 0:01:37.2]} 35. Qd6 {[%clk 0:00:38.6]} 35... Kg7 {[%clk
0:01:36.3]} 36. Qc7+ {[%clk 0:00:35]} 36... Rf7 {[%clk 0:01:36]} 37. Qxc5 {[%clk
0:00:35.5]} 37... Rd7 {[%clk 0:01:25.4]} 38. a4 {[%clk 0:00:31.8]} 38... Rd2
{[%clk 0:00:55.1]} 39. Qc6 {[%clk 0:00:29.9]} 39... Qf5 {[%clk 0:00:53.6]} 40.
Qb7+ {[%clk 0:00:27.3]} 40... Kh6 {[%clk 0:00:51.4]} 41. Qe4 {[%clk 0:00:20]}
41... Qh5+ {[%clk 0:00:49.4]} 42. Kg1 {[%clk 0:00:19.6]} 42... Rd1+ {[%clk
0:00:48.4]} 43. Kf2 {[%clk 0:00:16.6]} 43... Bg5 {[%clk 0:00:31.7]} 44. Qf3
{[%clk 0:00:14]} 44... Rd2+ {[%clk 0:00:27.1]} 45. Ke1 {[%clk 0:00:13.1]} 45...
Qxf3 {[%clk 0:00:24.1]} 46. Bxf3 {[%clk 0:00:14]} 46... Rd3 {[%clk 0:00:23.2]}
47. Ke2 {[%clk 0:00:12.2]} 47... Rc3 {[%clk 0:00:21.8]} 48. Bd5 {[%clk
0:00:10.5]} 48... Kg7 {[%clk 0:00:20.9]} 49. a5 {[%clk 0:00:10.4]} 49... Ra3
{[%clk 0:00:19]} 50. a6 {[%clk 0:00:10.6]} 50... Bf6 {[%clk 0:00:18.2]} 51. Rc6
{[%clk 0:00:08.1]} 51... Be5 {[%clk 0:00:17.6]} 52. Re6 {[%clk 0:00:07.8]} 52...
Bxg3 {[%clk 0:00:14.1]} 53. Kf3 {[%clk 0:00:06.4]} 53... Bh2 {[%clk 0:00:12.8]}
54. Ke4 {[%clk 0:00:05.2]} 54... g5 {[%clk 0:00:11.7]} 55. Re7+ {[%clk
0:00:05.6]} 55... Kf6 {[%clk 0:00:11.5]} 56. Rf7+ {[%clk 0:00:06.2]} 56... Kg6
{[%clk 0:00:11.9]} 57. a7 {[%clk 0:00:06.7]} 57... g4 {[%clk 0:00:12]} 58. Rd7
{[%clk 0:00:04.9]} 58... g3 {[%clk 0:00:12.1]} 59. Rd8 {[%clk 0:00:04.6]} 59...
Rxa7 {[%clk 0:00:10.1]} 60. Kf3 {[%clk 0:00:04.2]} 60... Kf5 {[%clk 0:00:09.4]}
61. Rg8 {[%clk 0:00:04]} 61... Ke5 {[%clk 0:00:09.6]} 62. Rg5+ {[%clk
0:00:03.9]} 62... Kd6 {[%clk 0:00:09.9]} 63. Rg6+ {[%clk 0:00:04.4]} 63... Kc5
{[%clk 0:00:10.4]} 64. Rc6+ {[%clk 0:00:05.1]} 64... Kb4 {[%clk 0:00:10.9]} 65.
Rc8 {[%clk 0:00:05]} 65... Ra2 {[%clk 0:00:10]} 66. Rg8 {[%clk 0:00:05.4]} 66...
Rf2+ {[%clk 0:00:09.5]} 67. Kg4 {[%clk 0:00:03.2]} 67... g2 {[%clk 0:00:09.8]}
0-1